[Event "*** Titled Tuesday Blitz"]
[Site "Chess.com"]
[Date "2021.02.16"]
[Round "3"]
[White "IwkooO"]
[Black "onnoelgersma"]
[Result "0-1"]
[WhiteElo "2618"]
[BlackElo "2434"]
[TimeControl "180+1"]
[EndTime "10:31:56 PST"]
[Termination "onnoelgersma won by resignation"]

1. d4 {[%clk 0:03:00.9]} 1... d5 {[%clk 0:03:00]} 2. Nf3 {[%clk 0:03:01.5]} 2...
Bg4 {[%clk 0:02:58.9]} 3. e3 {[%clk 0:03:02.4]} 3... e6 {[%clk 0:02:58.1]} 4.
Bd3 {[%clk 0:03:01.2]} 4... Nf6 {[%clk 0:02:58]} 5. b3 {[%clk 0:03:01.6]} 5...
c5 {[%clk 0:02:57.4]} 6. Bb2 {[%clk 0:03:01.8]} 6... Nc6 {[%clk 0:02:57.9]} 7.
Nbd2 {[%clk 0:03:01.2]} 7... cxd4 {[%clk 0:02:58]} 8. exd4 {[%clk 0:03:01.4]}
8... Bd6 {[%clk 0:02:58.6]} 9. h3 {[%clk 0:02:58.7]} 9... Bh5 {[%clk 0:02:58.6]}
10. a3 {[%clk 0:02:57.6]} 10... Rc8 {[%clk 0:02:58.4]} 11. O-O {[%clk
0:02:57.8]} 11... O-O {[%clk 0:02:58.5]} 12. Qe2 {[%clk 0:02:45]} 12... Re8
{[%clk 0:02:55.7]} 13. g4 {[%clk 0:02:31.6]} 13... Bg6 {[%clk 0:02:54.5]} 14.
Ne5 {[%clk 0:02:32]} 14... Qb6 {[%clk 0:02:50.7]} 15. Nxg6 {[%clk 0:01:48.2]}
15... hxg6 {[%clk 0:02:49.3]} 16. Nf3 {[%clk 0:01:48.7]} 16... Nd7 {[%clk
0:02:49.1]} 17. Rae1 {[%clk 0:01:26.1]} 17... e5 {[%clk 0:02:45.1]} 18. dxe5
{[%clk 0:01:26.1]} 18... Ndxe5 {[%clk 0:02:32.4]} 19. Kg2 {[%clk 0:01:20.8]}
19... Re7 {[%clk 0:02:19.4]} 20. Qe3 {[%clk 0:00:58.4]} 20... Qc7 {[%clk
0:01:29.4]} 21. Bb5 {[%clk 0:00:42.8]} 21... Nc4 {[%clk 0:01:12.1]} 22. Qc1
{[%clk 0:00:36.4]} 22... Rxe1 {[%clk 0:01:05.1]} 23. Rxe1 {[%clk 0:00:36.1]}
23... Bf4 {[%clk 0:01:05.3]} 24. Qa1 {[%clk 0:00:33.6]} 24... Nxb2 {[%clk
0:01:05]} 25. Qxb2 {[%clk 0:00:34.5]} 25... a6 {[%clk 0:01:05.3]} 26. Bd3 {[%clk
0:00:31.2]} 26... Qd6 {[%clk 0:01:02.4]} 27. h4 {[%clk 0:00:28.7]} 27... b5
{[%clk 0:00:56.9]} 28. Rh1 {[%clk 0:00:26.1]} 28... Ne5 {[%clk 0:00:55.8]} 29.
Nxe5 {[%clk 0:00:26.2]} 29... Bxe5 {[%clk 0:00:55.8]} 30. Qc1 {[%clk 0:00:25.8]}
30... Qf6 {[%clk 0:00:53]} 31. h5 {[%clk 0:00:24.4]} 31... g5 {[%clk 0:00:50.9]}
32. Bf5 {[%clk 0:00:22.9]} 32... Rc3 {[%clk 0:00:50.5]} 33. Qd1 {[%clk
0:00:22.7]} 33... Qc6 {[%clk 0:00:49]} 34. Re1 {[%clk 0:00:13.4]} 34... Qd6
{[%clk 0:00:41.4]} 35. Qe2 {[%clk 0:00:13.5]} 35... f6 {[%clk 0:00:20.4]} 36.
Rd1 {[%clk 0:00:13.8]} 36... d4 {[%clk 0:00:19.8]} 37. Qe4 {[%clk 0:00:13.9]}
37... Qd8 {[%clk 0:00:16.9]} 38. Qb7 {[%clk 0:00:13.5]} 38... Rc7 {[%clk
0:00:15.9]} 39. Qxa6 {[%clk 0:00:13.3]} 39... b4 {[%clk 0:00:13.9]} 40. Qe6+
{[%clk 0:00:10.8]} 40... Kh8 {[%clk 0:00:12.6]} 41. axb4 {[%clk 0:00:11.3]}
41... Qa8+ {[%clk 0:00:12.3]} 42. f3 {[%clk 0:00:10.4]} 42... d3 {[%clk
0:00:10.9]} 43. Bxd3 {[%clk 0:00:09.6]} 43... Qb8 {[%clk 0:00:10.2]} 44. Qf5
{[%clk 0:00:10]} 44... Kg8 {[%clk 0:00:09.6]} 45. Qh7+ {[%clk 0:00:10.4]} 45...
Kf7 {[%clk 0:00:09.7]} 46. Qh8 {[%clk 0:00:11.3]} 46... Qxh8 {[%clk 0:00:09.3]}
47. Bg6+ {[%clk 0:00:11.9]} 47... Ke7 {[%clk 0:00:09.4]} 48. c4 {[%clk
0:00:11.8]} 48... Qb8 {[%clk 0:00:09.4]} 49. b5 {[%clk 0:00:11.7]} 49... Qa8
{[%clk 0:00:09.8]} 50. Be4 {[%clk 0:00:11.6]} 50... Qa2+ {[%clk 0:00:09.7]} 51.
Kf1 {[%clk 0:00:12.1]} 51... Qh2 {[%clk 0:00:09.6]} 52. b6 {[%clk 0:00:10.4]}
52... Rd7 {[%clk 0:00:09.3]} 53. Rxd7+ {[%clk 0:00:08.8]} 53... Kxd7 {[%clk
0:00:10.2]} 54. c5 {[%clk 0:00:09.4]} 54... Bd4 {[%clk 0:00:10.1]} 55. c6+
{[%clk 0:00:09.6]} 55... Ke7 {[%clk 0:00:10.1]} 56. Ke1 {[%clk 0:00:09.4]} 56...
Bc3+ {[%clk 0:00:09.8]} 57. Kf1 {[%clk 0:00:08.4]} 57... Bd4 {[%clk 0:00:10.1]}
58. Ke1 {[%clk 0:00:07]} 58... Bxb6 {[%clk 0:00:10.6]} 0-1

[Event "*** Titled Tuesday Blitz"]
[Site "Chess.com"]
[Date "2021.02.16"]
[Round "3"]
[White "IngOscarArdila"]
[Black "Chesspirate_Channel"]
[Result "1-0"]
[WhiteElo "2155"]
[BlackElo "2318"]
[TimeControl "180+1"]
[EndTime "10:31:56 PST"]
[Termination "IngOscarArdila won on time"]

1. d4 {[%clk 0:02:57.1]} 1... d5 {[%clk 0:02:59.9]} 2. Nf3 {[%clk 0:02:51.8]}
2... Nc6 {[%clk 0:02:59.6]} 3. e3 {[%clk 0:02:49]} 3... Bg4 {[%clk 0:02:59.5]}
4. Be2 {[%clk 0:02:49.1]} 4... Qd7 {[%clk 0:02:57.9]} 5. Nbd2 {[%clk 0:02:48.9]}
5... f6 {[%clk 0:02:55.8]} 6. h3 {[%clk 0:02:48.2]} 6... Bf5 {[%clk 0:02:55.1]}
7. c3 {[%clk 0:02:45.8]} 7... e5 {[%clk 0:02:54.2]} 8. dxe5 {[%clk 0:02:45.4]}
8... fxe5 {[%clk 0:02:53.7]} 9. Qa4 {[%clk 0:02:41.2]} 9... Nf6 {[%clk
0:02:50.2]} 10. Bb5 {[%clk 0:02:39.6]} 10... Bd6 {[%clk 0:02:49.2]} 11. Bxc6
{[%clk 0:02:38.1]} 11... bxc6 {[%clk 0:02:47.6]} 12. c4 {[%clk 0:02:36.3]} 12...
O-O {[%clk 0:02:30.9]} 13. cxd5 {[%clk 0:02:34.3]} 13... cxd5 {[%clk 0:02:31.8]}
14. Qxd7 {[%clk 0:02:31.5]} 14... Bxd7 {[%clk 0:02:19]} 15. O-O {[%clk
0:02:30.3]} 15... Rab8 {[%clk 0:02:12.5]} 16. b3 {[%clk 0:02:29.6]} 16... e4
{[%clk 0:02:09.1]} 17. Nd4 {[%clk 0:02:29.1]} 17... c5 {[%clk 0:02:08.9]} 18.
Ne2 {[%clk 0:02:26.7]} 18... Bb5 {[%clk 0:02:05.9]} 19. Re1 {[%clk 0:02:26.9]}
19... Be5 {[%clk 0:02:04.8]} 20. Rb1 {[%clk 0:02:20.2]} 20... Bd3 {[%clk
0:02:04.7]} 21. Ba3 {[%clk 0:02:18.8]} 21... Bxb1 {[%clk 0:02:02.3]} 22. Rxb1
{[%clk 0:02:19.1]} 22... Rfc8 {[%clk 0:01:58.3]} 23. f4 {[%clk 0:02:02.3]} 23...
exf3 {[%clk 0:01:52.1]} 24. Nxf3 {[%clk 0:02:02]} 24... Bd6 {[%clk 0:01:45.4]}
25. Bb2 {[%clk 0:01:59.4]} 25... c4 {[%clk 0:01:30.8]} 26. Nfd4 {[%clk
0:01:58.6]} 26... Be5 {[%clk 0:01:25.3]} 27. Rd1 {[%clk 0:01:53.9]} 27... cxb3
{[%clk 0:01:23]} 28. axb3 {[%clk 0:01:53.9]} 28... Ne4 {[%clk 0:01:14.1]} 29.
Ba1 {[%clk 0:01:25.8]} 29... Rb6 {[%clk 0:00:51.8]} 30. Nc6 {[%clk 0:01:16.9]}
30... Rcxc6 {[%clk 0:00:38.6]} 31. Bxe5 {[%clk 0:01:16.5]} 31... Rxb3 {[%clk
0:00:38.2]} 32. Nd4 {[%clk 0:01:14.1]} 32... Re6 {[%clk 0:00:32.4]} 33. Nxe6
{[%clk 0:01:09]} 33... Rxe3 {[%clk 0:00:32.2]} 34. Bd4 {[%clk 0:00:53.3]} 34...
Ra3 {[%clk 0:00:20.8]} 35. Nxg7 {[%clk 0:00:53.1]} 35... Ng3 {[%clk 0:00:18.2]}
36. Kh2 {[%clk 0:00:49]} 36... Ne2 {[%clk 0:00:17.6]} 37. Ba1 {[%clk 0:00:43.7]}
37... d4 {[%clk 0:00:17]} 38. Nf5 {[%clk 0:00:42.6]} 38... d3 {[%clk 0:00:16.5]}
39. Ng3 {[%clk 0:00:38.5]} 39... h5 {[%clk 0:00:06.9]} 40. Nxe2 {[%clk
0:00:35.3]} 40... dxe2 {[%clk 0:00:07.8]} 41. Re1 {[%clk 0:00:35.8]} 41... Ra2
{[%clk 0:00:08.2]} 42. Bc3 {[%clk 0:00:34.5]} 42... a5 {[%clk 0:00:09.1]} 43.
Bxa5 {[%clk 0:00:30.6]} 43... Rxa5 {[%clk 0:00:08.7]} 44. Rxe2 {[%clk
0:00:31.4]} 44... Kg7 {[%clk 0:00:09.1]} 45. Kg3 {[%clk 0:00:30.6]} 45... Kg6
{[%clk 0:00:08.9]} 46. Re4 {[%clk 0:00:30.3]} 46... Kg5 {[%clk 0:00:07.4]} 47.
h4+ {[%clk 0:00:29.9]} 47... Kg6 {[%clk 0:00:07.4]} 48. Rc4 {[%clk 0:00:29.7]}
48... Ra3+ {[%clk 0:00:07.3]} 49. Kf4 {[%clk 0:00:28.3]} 49... Ra2 {[%clk
0:00:05.4]} 50. Rc6+ {[%clk 0:00:28]} 50... Kg7 {[%clk 0:00:04.6]} 51. g3 {[%clk
0:00:28.1]} 51... Ra5 {[%clk 0:00:04]} 52. Re6 {[%clk 0:00:26.8]} 52... Ra4+
{[%clk 0:00:03.1]} 53. Re4 {[%clk 0:00:25]} 53... Ra5 {[%clk 0:00:02]} 54. Re5
{[%clk 0:00:21.6]} 54... Ra4+ {[%clk 0:00:02.1]} 55. Kf3 {[%clk 0:00:20.7]}
55... Ra3+ {[%clk 0:00:01.4]} 56. Kf4 {[%clk 0:00:18.4]} 1-0

[Event "*** Titled Tuesday Blitz"]
[Site "Chess.com"]
[Date "2021.02.16"]
[Round "3"]
[White "AlexOstrovskiy"]
[Black "xberli"]
[Result "0-1"]
[WhiteElo "2750"]
[BlackElo "2502"]
[TimeControl "180+1"]
[EndTime "10:31:57 PST"]
[Termination "xberli won by checkmate"]

1. d4 {[%clk 0:03:00.9]} 1... g6 {[%clk 0:02:59.5]} 2. e4 {[%clk 0:02:58.9]}
2... b6 {[%clk 0:02:59.9]} 3. Bc4 {[%clk 0:02:50.9]} 3... Bg7 {[%clk 0:02:59.6]}
4. c3 {[%clk 0:02:51.1]} 4... Bb7 {[%clk 0:02:59.3]} 5. Qe2 {[%clk 0:02:50.6]}
5... Nf6 {[%clk 0:02:57.8]} 6. Nd2 {[%clk 0:02:46.8]} 6... d5 {[%clk 0:02:54.2]}
7. exd5 {[%clk 0:02:43.2]} 7... Nxd5 {[%clk 0:02:55.1]} 8. Ne4 {[%clk
0:02:39.2]} 8... O-O {[%clk 0:02:54]} 9. Nf3 {[%clk 0:02:39]} 9... Nd7 {[%clk
0:02:52.7]} 10. Bg5 {[%clk 0:02:29.8]} 10... h6 {[%clk 0:02:26.9]} 11. Bd2
{[%clk 0:02:28.4]} 11... c5 {[%clk 0:02:25.4]} 12. dxc5 {[%clk 0:02:15]} 12...
Nxc5 {[%clk 0:02:06.1]} 13. Nxc5 {[%clk 0:02:11.7]} 13... bxc5 {[%clk 0:02:07]}
14. O-O {[%clk 0:02:08]} 14... Qc7 {[%clk 0:02:05.9]} 15. Rfe1 {[%clk
0:01:59.5]} 15... e6 {[%clk 0:02:02.5]} 16. Ne5 {[%clk 0:01:54.9]} 16... Rad8
{[%clk 0:01:58]} 17. Rad1 {[%clk 0:01:54.4]} 17... Nb6 {[%clk 0:01:46.7]} 18.
Bb3 {[%clk 0:01:45.6]} 18... Kh7 {[%clk 0:01:31.6]} 19. Bc2 {[%clk 0:01:44.4]}
19... Nd7 {[%clk 0:01:24.2]} 20. Ng4 {[%clk 0:01:01.8]} 20... Nf6 {[%clk
0:01:12.7]} 21. Ne5 {[%clk 0:00:33.8]} 21... Nd7 {[%clk 0:01:09]} 22. Nc4 {[%clk
0:00:27.9]} 22... Nf6 {[%clk 0:00:48.1]} 23. f3 {[%clk 0:00:28.3]} 23... Nd5
{[%clk 0:00:44.7]} 24. Ne5 {[%clk 0:00:22.3]} 24... Qb6 {[%clk 0:00:32.1]} 25.
c4 {[%clk 0:00:19.5]} 25... Nb4 {[%clk 0:00:23.7]} 26. Bb1 {[%clk 0:00:17]}
26... Nc6 {[%clk 0:00:21.8]} 27. Nxf7 {[%clk 0:00:09.5]} 27... Rxf7 {[%clk
0:00:18.4]} 28. Qxe6 {[%clk 0:00:08.6]} 28... Rf6 {[%clk 0:00:18]} 29. Qg4
{[%clk 0:00:05.8]} 29... Qc7 {[%clk 0:00:13.9]} 30. Bc3 {[%clk 0:00:04.3]} 30...
Nd4 {[%clk 0:00:13.9]} 31. h4 {[%clk 0:00:03.2]} 31... Kh8 {[%clk 0:00:12.2]}
32. Bxg6 {[%clk 0:00:02.4]} 32... Qf4 {[%clk 0:00:12.2]} 33. Qxf4 {[%clk
0:00:02.6]} 33... Rxf4 {[%clk 0:00:12.4]} 34. h5 {[%clk 0:00:02.6]} 34... Rdf8
{[%clk 0:00:11.4]} 35. Bd2 {[%clk 0:00:02.1]} 35... R4f6 {[%clk 0:00:10.9]} 36.
b3 {[%clk 0:00:02.6]} 36... Bc8 {[%clk 0:00:09.5]} 37. Be3 {[%clk 0:00:03.1]}
37... Bf5 {[%clk 0:00:09.3]} 38. Bxf5 {[%clk 0:00:02.2]} 38... Rxf5 {[%clk
0:00:10.2]} 39. Bf2 {[%clk 0:00:02.9]} 39... Rxh5 {[%clk 0:00:10]} 40. Re7
{[%clk 0:00:03.5]} 40... Rg5 {[%clk 0:00:10.3]} 41. Kf1 {[%clk 0:00:03]} 41...
Re5 {[%clk 0:00:09.6]} 42. Rxa7 {[%clk 0:00:02.6]} 42... Rfe8 {[%clk 0:00:08.8]}
43. Rc7 {[%clk 0:00:03.1]} 43... Re2 {[%clk 0:00:08.2]} 44. Rxc5 {[%clk
0:00:02.7]} 44... Nc2 {[%clk 0:00:08]} 45. Rc7 {[%clk 0:00:02.1]} 45... Nb4
{[%clk 0:00:07.3]} 46. Rdd7 {[%clk 0:00:01.6]} 46... Bc3 {[%clk 0:00:06.2]} 47.
Bd4+ {[%clk 0:00:01.7]} 47... Bxd4 {[%clk 0:00:06.1]} 48. Rxd4 {[%clk
0:00:02.6]} 48... Rxa2 {[%clk 0:00:06.3]} 49. Rdd7 {[%clk 0:00:02.3]} 49... Nc2
{[%clk 0:00:05.8]} 50. Rh7+ {[%clk 0:00:02.1]} 50... Kg8 {[%clk 0:00:06.1]} 51.
Rcg7+ {[%clk 0:00:03]} 51... Kf8 {[%clk 0:00:06.5]} 52. Rf7+ {[%clk 0:00:03.9]}
52... Kg8 {[%clk 0:00:06.7]} 53. Rhg7+ {[%clk 0:00:04.8]} 53... Kh8 {[%clk
0:00:07.1]} 54. Kg1 {[%clk 0:00:04.6]} 54... Nd4 {[%clk 0:00:06.7]} 55. Rh7+
{[%clk 0:00:04.7]} 55... Kg8 {[%clk 0:00:07]} 56. Rhg7+ {[%clk 0:00:05.6]} 56...
Kh8 {[%clk 0:00:07.2]} 57. Rd7 {[%clk 0:00:05.5]} 57... Ne6 {[%clk 0:00:06.6]}
58. Rh7+ {[%clk 0:00:05.3]} 58... Kg8 {[%clk 0:00:07]} 59. Rxh6 {[%clk
0:00:03.9]} 59... Nf4 {[%clk 0:00:06.3]} 60. Rh4 {[%clk 0:00:02]} 60... Re1+
{[%clk 0:00:06.1]} 61. Kh2 {[%clk 0:00:01.7]} 61... Rxg2# {[%clk 0:00:06.7]} 0-1

[Event "*** Titled Tuesday Blitz"]
[Site "Chess.com"]
[Date "2021.02.16"]
[Round "3"]
[White "DenLaz"]
[Black "Zurability"]
[Result "1-0"]
[WhiteElo "2786"]
[BlackElo "2601"]
[TimeControl "180+1"]
[EndTime "10:31:59 PST"]
[Termination "DenLaz won by resignation"]

1. d4 {[%clk 0:03:00.9]} 1... Nf6 {[%clk 0:03:00.1]} 2. c4 {[%clk 0:03:01.1]}
2... e6 {[%clk 0:03:00.7]} 3. Nf3 {[%clk 0:03:00.9]} 3... d5 {[%clk 0:03:01]} 4.
Nc3 {[%clk 0:03:00.4]} 4... Be7 {[%clk 0:02:59.8]} 5. Bg5 {[%clk 0:02:59.9]}
5... O-O {[%clk 0:02:58]} 6. e3 {[%clk 0:03:00.2]} 6... h6 {[%clk 0:02:55.1]} 7.
Bxf6 {[%clk 0:02:58.7]} 7... Bxf6 {[%clk 0:02:55.1]} 8. Rc1 {[%clk 0:02:59.3]}
8... b6 {[%clk 0:02:48.6]} 9. Bd3 {[%clk 0:02:35.2]} 9... Bb7 {[%clk 0:02:44.1]}
10. cxd5 {[%clk 0:02:33.9]} 10... exd5 {[%clk 0:02:44.1]} 11. O-O {[%clk
0:02:20.7]} 11... Nd7 {[%clk 0:02:40.7]} 12. Qe2 {[%clk 0:02:17.9]} 12... c5
{[%clk 0:02:34.1]} 13. Ba6 {[%clk 0:02:14.5]} 13... Qc8 {[%clk 0:02:28.1]} 14.
Bxb7 {[%clk 0:02:07.2]} 14... Qxb7 {[%clk 0:02:28.3]} 15. dxc5 {[%clk
0:02:06.5]} 15... bxc5 {[%clk 0:02:26]} 16. Rfd1 {[%clk 0:02:05]} 16... Nb6
{[%clk 0:02:24.8]} 17. Qb5 {[%clk 0:02:03.3]} 17... Rac8 {[%clk 0:02:15.3]} 18.
Nxd5 {[%clk 0:01:58.7]} 18... Bd8 {[%clk 0:01:54.6]} 19. Nxb6 {[%clk 0:01:52]}
19... axb6 {[%clk 0:01:50.8]} 20. Ne5 {[%clk 0:01:50.2]} 20... Bc7 {[%clk
0:01:43]} 21. Nc4 {[%clk 0:01:14.8]} 21... Rcd8 {[%clk 0:01:34.8]} 22. a4 {[%clk
0:01:09.3]} 22... Qe4 {[%clk 0:01:18.8]} 23. Qb3 {[%clk 0:01:07.3]} 23... h5
{[%clk 0:01:14.8]} 24. h3 {[%clk 0:00:49.3]} 24... Qe6 {[%clk 0:01:05]} 25. Qc2
{[%clk 0:00:47.4]} 25... Qc6 {[%clk 0:00:56.9]} 26. b3 {[%clk 0:00:45.7]} 26...
Bb8 {[%clk 0:00:56.9]} 27. Rxd8 {[%clk 0:00:45.1]} 27... Rxd8 {[%clk 0:00:56.7]}
28. Rd1 {[%clk 0:00:45.7]} 28... Rxd1+ {[%clk 0:00:52.1]} 29. Qxd1 {[%clk
0:00:46.6]} 29... Qc7 {[%clk 0:00:52.7]} 30. f4 {[%clk 0:00:43.8]} 30... g6
{[%clk 0:00:52.3]} 31. Qd5 {[%clk 0:00:43]} 31... Kg7 {[%clk 0:00:47.8]} 32. g3
{[%clk 0:00:38]} 32... Qe7 {[%clk 0:00:46.2]} 33. Kg2 {[%clk 0:00:35.4]} 33...
Bc7 {[%clk 0:00:45.3]} 34. Kf3 {[%clk 0:00:31.8]} 34... Qe8 {[%clk 0:00:38.7]}
35. e4 {[%clk 0:00:25.9]} 35... h4 {[%clk 0:00:37.9]} 36. g4 {[%clk 0:00:25.3]}
36... Qe7 {[%clk 0:00:37.6]} 37. e5 {[%clk 0:00:25.3]} 37... Kf8 {[%clk
0:00:26.6]} 38. Nd2 {[%clk 0:00:21.2]} 38... g5 {[%clk 0:00:24.3]} 39. Nc4
{[%clk 0:00:12.5]} 39... gxf4 {[%clk 0:00:23.8]} 40. Kxf4 {[%clk 0:00:13.4]}
40... f6 {[%clk 0:00:22.1]} 41. Kf3 {[%clk 0:00:08.9]} 41... fxe5 {[%clk
0:00:22]} 42. Qe4 {[%clk 0:00:09.3]} 42... Kg7 {[%clk 0:00:20.6]} 43. Qf5 {[%clk
0:00:09.2]} 43... Bb8 {[%clk 0:00:17]} 44. Ne3 {[%clk 0:00:06]} 44... Kg8 {[%clk
0:00:07.7]} 45. Qg6+ {[%clk 0:00:06]} 45... Kf8 {[%clk 0:00:06.3]} 46. Nf5
{[%clk 0:00:04.8]} 46... Qf7 {[%clk 0:00:06.4]} 47. Qxf7+ {[%clk 0:00:04.2]}
47... Kxf7 {[%clk 0:00:06.8]} 48. Nxh4 {[%clk 0:00:04.9]} 48... Kf6 {[%clk
0:00:03.8]} 49. Ke4 {[%clk 0:00:05.4]} 49... Ke6 {[%clk 0:00:02.4]} 50. Nf3
{[%clk 0:00:05.4]} 50... Bd6 {[%clk 0:00:02.9]} 51. g5 {[%clk 0:00:05.8]} 51...
Be7 {[%clk 0:00:03.3]} 52. h4 {[%clk 0:00:05.9]} 52... Bd8 {[%clk 0:00:03.9]}
53. Nxe5 {[%clk 0:00:06]} 53... Bc7 {[%clk 0:00:04.8]} 54. Nc4 {[%clk
0:00:06.5]} 54... Bd8 {[%clk 0:00:04.8]} 55. g6 {[%clk 0:00:06.9]} 55... Kf6
{[%clk 0:00:05.2]} 56. h5 {[%clk 0:00:06.3]} 56... Kg7 {[%clk 0:00:05.7]} 57.
Kd5 {[%clk 0:00:06.7]} 57... Kh6 {[%clk 0:00:05.6]} 58. Kc6 {[%clk 0:00:07.3]}
58... Bf6 {[%clk 0:00:06.3]} 59. Nxb6 {[%clk 0:00:07.3]} 59... Kxh5 {[%clk
0:00:06.9]} 60. Nd7 {[%clk 0:00:07.7]} 60... Bd4 {[%clk 0:00:06.6]} 61. Nxc5
{[%clk 0:00:07.7]} 61... Kxg6 {[%clk 0:00:07.1]} 62. a5 {[%clk 0:00:08.4]} 62...
Kf7 {[%clk 0:00:06.2]} 63. a6 {[%clk 0:00:08.7]} 1-0

[Event "*** Titled Tuesday Blitz"]
[Site "Chess.com"]
[Date "2021.02.16"]
[Round "3"]
[White "TC2304"]
[Black "Hypercar"]
[Result "1-0"]
[WhiteElo "2342"]
[BlackElo "2517"]
[TimeControl "180+1"]
[EndTime "10:31:59 PST"]
[Termination "TC2304 won by resignation"]

1. d4 {[%clk 0:03:00.9]} 1... c5 {[%clk 0:02:58.1]} 2. d5 {[%clk 0:03:01]} 2...
d6 {[%clk 0:02:25.5]} 3. Nc3 {[%clk 0:03:00.1]} 3... Nf6 {[%clk 0:02:26.1]} 4.
e4 {[%clk 0:03:00.4]} 4... g6 {[%clk 0:02:26.8]} 5. Nf3 {[%clk 0:02:57.7]} 5...
Bg7 {[%clk 0:02:27.3]} 6. Bb5+ {[%clk 0:02:57.8]} 6... Bd7 {[%clk 0:02:26.7]} 7.
a4 {[%clk 0:02:57.3]} 7... a6 {[%clk 0:02:13.6]} 8. Be2 {[%clk 0:02:57.2]} 8...
O-O {[%clk 0:02:13.3]} 9. O-O {[%clk 0:02:57.1]} 9... Bg4 {[%clk 0:02:05.7]} 10.
Nd2 {[%clk 0:02:50.8]} 10... Bxe2 {[%clk 0:02:04.6]} 11. Qxe2 {[%clk 0:02:51.7]}
11... Nbd7 {[%clk 0:02:04.1]} 12. Nc4 {[%clk 0:02:42.4]} 12... h5 {[%clk
0:01:59.2]} 13. Rb1 {[%clk 0:02:29.5]} 13... Ng4 {[%clk 0:01:55.9]} 14. f4
{[%clk 0:02:10]} 14... b5 {[%clk 0:01:40.3]} 15. axb5 {[%clk 0:01:27.3]} 15...
axb5 {[%clk 0:01:35.1]} 16. Nxb5 {[%clk 0:01:27.4]} 16... Rb8 {[%clk 0:01:25.8]}
17. Ne3 {[%clk 0:01:21.5]} 17... Qa5 {[%clk 0:01:13.9]} 18. c4 {[%clk 0:01:18]}
18... Ngf6 {[%clk 0:01:00.2]} 19. e5 {[%clk 0:01:11.1]} 19... dxe5 {[%clk
0:00:58.5]} 20. f5 {[%clk 0:01:11.8]} 20... e4 {[%clk 0:00:49.9]} 21. Bd2 {[%clk
0:01:02.1]} 21... Qb6 {[%clk 0:00:48.6]} 22. Bc3 {[%clk 0:00:54]} 22... Ra8
{[%clk 0:00:40.2]} 23. Kh1 {[%clk 0:00:40.4]} 23... Qb8 {[%clk 0:00:37.7]} 24.
b3 {[%clk 0:00:18.5]} 24... Ne5 {[%clk 0:00:35.7]} 25. d6 {[%clk 0:00:15.9]}
25... exd6 {[%clk 0:00:33.4]} 26. fxg6 {[%clk 0:00:16.3]} 26... fxg6 {[%clk
0:00:33]} 27. Nd5 {[%clk 0:00:16.7]} 27... Nxd5 {[%clk 0:00:31.8]} 28. cxd5
{[%clk 0:00:17.6]} 28... Qb6 {[%clk 0:00:17.8]} 29. h3 {[%clk 0:00:13.5]} 29...
Rxf1+ {[%clk 0:00:13.6]} 30. Qxf1 {[%clk 0:00:13]} 30... Rb8 {[%clk 0:00:13.1]}
31. Na3 {[%clk 0:00:12.9]} 31... Rf8 {[%clk 0:00:10.1]} 32. Qe2 {[%clk 0:00:12]}
32... Qa7 {[%clk 0:00:08.2]} 33. Nc4 {[%clk 0:00:12.1]} 33... Nxc4 {[%clk
0:00:06.9]} 34. Qxc4 {[%clk 0:00:12.9]} 34... Bxc3 {[%clk 0:00:04.8]} 35. Qxc3
{[%clk 0:00:13.8]} 35... Qf7 {[%clk 0:00:04.7]} 36. Qc4 {[%clk 0:00:13.3]} 36...
Qf4 {[%clk 0:00:04.1]} 37. Re1 {[%clk 0:00:13.4]} 37... e3 {[%clk 0:00:02.5]}
38. Qxf4 {[%clk 0:00:13]} 38... Rxf4 {[%clk 0:00:03.4]} 39. Rxe3 {[%clk
0:00:13.9]} 39... Rd4 {[%clk 0:00:03.6]} 40. Re6 {[%clk 0:00:13]} 40... Rxd5
{[%clk 0:00:04]} 41. Rxg6+ {[%clk 0:00:13.1]} 41... Kf7 {[%clk 0:00:04.9]} 42.
Rh6 {[%clk 0:00:12.4]} 42... Rd1+ {[%clk 0:00:04.4]} 43. Kh2 {[%clk 0:00:12.8]}
43... Rd3 {[%clk 0:00:05.1]} 44. Rxh5 {[%clk 0:00:11.7]} 44... Rxb3 {[%clk
0:00:05.4]} 45. Rd5 {[%clk 0:00:11.5]} 45... Ke6 {[%clk 0:00:04.8]} 46. Rd1
{[%clk 0:00:10.9]} 46... c4 {[%clk 0:00:05.3]} 47. Kg1 {[%clk 0:00:11.6]} 47...
d5 {[%clk 0:00:05.7]} 48. Kf2 {[%clk 0:00:12]} 48... Ke5 {[%clk 0:00:05.8]} 49.
h4 {[%clk 0:00:11]} 49... d4 {[%clk 0:00:06.2]} 50. h5 {[%clk 0:00:11.5]} 50...
d3 {[%clk 0:00:06.1]} 51. h6 {[%clk 0:00:11.8]} 51... Rb7 {[%clk 0:00:05.9]} 52.
Ke3 {[%clk 0:00:11.3]} 52... Kd5 {[%clk 0:00:05.4]} 53. Rh1 {[%clk 0:00:11.7]}
53... Re7+ {[%clk 0:00:05.8]} 54. Kd2 {[%clk 0:00:11.7]} 54... Kd4 {[%clk
0:00:05.9]} 55. Rh4+ {[%clk 0:00:11.2]} 55... Kd5 {[%clk 0:00:06.1]} 56. Kc3
{[%clk 0:00:10.9]} 56... Re2 {[%clk 0:00:05.7]} 57. h7 {[%clk 0:00:10.1]} 57...
Rc2+ {[%clk 0:00:06]} 58. Kb4 {[%clk 0:00:10.6]} 58... d2 {[%clk 0:00:06.9]} 59.
h8=Q {[%clk 0:00:10.7]} 59... d1=Q {[%clk 0:00:06.6]} 60. Qd8+ {[%clk 0:00:09]}
60... Ke5 {[%clk 0:00:06]} 61. Qxd1 {[%clk 0:00:09.9]} 61... Rxg2 {[%clk
0:00:03.9]} 62. Qd4+ {[%clk 0:00:09.6]} 62... Kf5 {[%clk 0:00:03.9]} 63. Rh5+
{[%clk 0:00:09.3]} 63... Kg6 {[%clk 0:00:04]} 64. Rd5 {[%clk 0:00:08.8]} 64...
Rg4 {[%clk 0:00:03.7]} 65. Qxg4+ {[%clk 0:00:08.5]} 1-0